[Event "*** Titled Tuesday Blitz"]
[Site "Chess.com"]
[Date "2020.12.29"]
[Round "3"]
[White "dosto07"]
[Black "MacDaddyMac"]
[Result "0-1"]
[WhiteElo "2312"]
[BlackElo "2486"]
[TimeControl "180+1"]
[EndTime "10:28:27 PST"]
[Termination "MacDaddyMac won on time"]

1. d4 {[%clk 0:03:00.9]} 1... e6 {[%clk 0:02:56.6]} 2. e4 {[%clk 0:02:59.4]}
2... d5 {[%clk 0:02:57.3]} 3. Nd2 {[%clk 0:02:57.7]} 3... Nf6 {[%clk 0:02:57.5]}
4. e5 {[%clk 0:02:57.4]} 4... Nfd7 {[%clk 0:02:58]} 5. Bd3 {[%clk 0:02:57.7]}
5... c5 {[%clk 0:02:58.9]} 6. c3 {[%clk 0:02:57.8]} 6... Nc6 {[%clk 0:02:59.8]}
7. Ne2 {[%clk 0:02:57.2]} 7... Qb6 {[%clk 0:02:58.2]} 8. Nf3 {[%clk 0:02:56.1]}
8... cxd4 {[%clk 0:02:58.3]} 9. cxd4 {[%clk 0:02:55.9]} 9... Bb4+ {[%clk
0:02:58.5]} 10. Bd2 {[%clk 0:02:54.9]} 10... a6 {[%clk 0:02:57.9]} 11. O-O
{[%clk 0:02:51.8]} 11... Be7 {[%clk 0:02:56.1]} 12. a3 {[%clk 0:02:28]} 12... h6
{[%clk 0:02:54.6]} 13. b4 {[%clk 0:02:25.9]} 13... Qc7 {[%clk 0:02:54.8]} 14.
Nf4 {[%clk 0:02:24.4]} 14... b5 {[%clk 0:02:54.8]} 15. Rc1 {[%clk 0:02:23.2]}
15... Nb6 {[%clk 0:02:54.9]} 16. Nh5 {[%clk 0:02:21.4]} 16... Bf8 {[%clk
0:02:53.2]} 17. Be3 {[%clk 0:02:11.6]} 17... Nc4 {[%clk 0:02:53]} 18. Qb3 {[%clk
0:01:59.5]} 18... Qb6 {[%clk 0:02:45.9]} 19. Bb1 {[%clk 0:01:50.9]} 19... Bd7
{[%clk 0:02:35.6]} 20. Rfd1 {[%clk 0:01:39.5]} 20... a5 {[%clk 0:02:33.5]} 21.
bxa5 {[%clk 0:01:36.8]} 21... Rxa5 {[%clk 0:02:32.6]} 22. Bd3 {[%clk 0:01:00.9]}
22... Rxa3 {[%clk 0:02:30.6]} 23. Qb1 {[%clk 0:01:01.4]} 23... Nb4 {[%clk
0:02:23.3]} 24. Nxg7+ {[%clk 0:00:51.5]} 24... Bxg7 {[%clk 0:01:29.2]} 25. Qxb4
{[%clk 0:00:50.2]} 25... Bf8 {[%clk 0:01:29.5]} 26. Qb1 {[%clk 0:00:47.9]} 26...
Qa7 {[%clk 0:01:07.7]} 27. Bxc4 {[%clk 0:00:45.3]} 27... bxc4 {[%clk 0:01:07.3]}
28. Qb2 {[%clk 0:00:31.7]} 28... Rb3 {[%clk 0:01:06.7]} 29. Ra1 {[%clk
0:00:28.3]} 29... Ba3 {[%clk 0:00:47.6]} 30. Qe2 {[%clk 0:00:21.8]} 30... Bb5
{[%clk 0:00:45.5]} 31. Qc2 {[%clk 0:00:14.4]} 31... Qa4 {[%clk 0:00:34.9]} 32.
Nd2 {[%clk 0:00:13.4]} 32... Rd3 {[%clk 0:00:30.2]} 33. Qxa4 {[%clk 0:00:12.8]}
33... Bxa4 {[%clk 0:00:31.1]} 34. Rdb1 {[%clk 0:00:09.7]} 34... O-O {[%clk
0:00:28.2]} 35. Nf1 {[%clk 0:00:08.4]} 35... Bc2 {[%clk 0:00:28]} 36. Rb7 {[%clk
0:00:06.8]} 36... Rb3 {[%clk 0:00:21.8]} 37. Ra7 {[%clk 0:00:05.9]} 37... Bb2
{[%clk 0:00:21.6]} 38. Re1 {[%clk 0:00:03.1]} 38... c3 {[%clk 0:00:20]} 39. Bxh6
{[%clk 0:00:02.4]} 39... Rc8 {[%clk 0:00:20.1]} 40. Re3 {[%clk 0:00:01.4]} 40...
Bg6 {[%clk 0:00:19.4]} 0-1

[Event "*** Titled Tuesday Blitz"]
[Site "Chess.com"]
[Date "2020.12.29"]
[Round "3"]
[White "HouseOfDurin"]
[Black "Trickov"]
[Result "0-1"]
[WhiteElo "2095"]
[BlackElo "2325"]
[TimeControl "180+1"]
[EndTime "10:28:28 PST"]
[Termination "Trickov won on time"]

1. d4 {[%clk 0:03:00.9]} 1... d5 {[%clk 0:02:55.8]} 2. Bg5 {[%clk 0:03:01.2]}
2... h6 {[%clk 0:02:52.6]} 3. Bh4 {[%clk 0:03:01.1]} 3... Nf6 {[%clk 0:02:48.4]}
4. Bxf6 {[%clk 0:03:01.1]} 4... exf6 {[%clk 0:02:44.2]} 5. e3 {[%clk 0:03:02]}
5... f5 {[%clk 0:02:41.1]} 6. g3 {[%clk 0:03:00.9]} 6... Nd7 {[%clk 0:02:38.5]}
7. c4 {[%clk 0:03:00.5]} 7... dxc4 {[%clk 0:02:35.3]} 8. Bxc4 {[%clk 0:03:01.4]}
8... Nf6 {[%clk 0:02:33.3]} 9. Qb3 {[%clk 0:02:46.7]} 9... Qd7 {[%clk
0:02:28.8]} 10. Nc3 {[%clk 0:02:32.6]} 10... c6 {[%clk 0:02:24.2]} 11. a4 {[%clk
0:02:31.5]} 11... Bd6 {[%clk 0:02:22.5]} 12. Nge2 {[%clk 0:02:25.2]} 12... O-O
{[%clk 0:02:21.6]} 13. O-O {[%clk 0:02:24.6]} 13... a5 {[%clk 0:02:09.5]} 14.
Rfd1 {[%clk 0:02:11.3]} 14... Qe7 {[%clk 0:02:00.4]} 15. Nc1 {[%clk 0:01:50.1]}
15... Ne4 {[%clk 0:01:47.9]} 16. Bf1 {[%clk 0:01:47]} 16... Be6 {[%clk
0:01:45.5]} 17. Qc2 {[%clk 0:01:45.9]} 17... Nxc3 {[%clk 0:01:28.2]} 18. bxc3
{[%clk 0:01:32.4]} 18... Bd5 {[%clk 0:01:27.2]} 19. Qxf5 {[%clk 0:01:13.6]}
19... Be4 {[%clk 0:01:24.2]} 20. Qh5 {[%clk 0:01:14]} 20... Ba3 {[%clk
0:01:17.4]} 21. Bd3 {[%clk 0:00:40.4]} 21... Bb2 {[%clk 0:01:05.6]} 22. Rb1
{[%clk 0:00:38.8]} 22... Bxc3 {[%clk 0:00:57.5]} 23. Bxe4 {[%clk 0:00:38.4]}
23... Qxe4 {[%clk 0:00:57.4]} 24. Rxb7 {[%clk 0:00:38.9]} 24... Qc2 {[%clk
0:00:56.6]} 25. Nd3 {[%clk 0:00:21.7]} 25... Qxa4 {[%clk 0:00:53.7]} 26. Ne5
{[%clk 0:00:21.5]} 26... Qa2 {[%clk 0:00:38.4]} 27. Rc1 {[%clk 0:00:13.8]} 27...
Bb4 {[%clk 0:00:33.3]} 28. Rxc6 {[%clk 0:00:11]} 28... Qb1+ {[%clk 0:00:26.5]}
29. Kg2 {[%clk 0:00:11.5]} 29... Qe4+ {[%clk 0:00:26.4]} 30. Qf3 {[%clk
0:00:12.1]} 30... Qxf3+ {[%clk 0:00:24.4]} 31. Kxf3 {[%clk 0:00:13]} 31... f6
{[%clk 0:00:21.3]} 32. Nd3 {[%clk 0:00:04.1]} 32... Rfb8 {[%clk 0:00:21]} 33.
Rcc7 {[%clk 0:00:02.3]} 33... Bf8 {[%clk 0:00:18.8]} 0-1

[Event "*** Titled Tuesday Blitz"]
[Site "Chess.com"]
[Date "2020.12.29"]
[Round "3"]
[White "Zemerovv"]
[Black "omer1997"]
[Result "0-1"]
[WhiteElo "2178"]
[BlackElo "2362"]
[TimeControl "180+1"]
[EndTime "10:28:29 PST"]
[Termination "omer1997 won by checkmate"]

1. g3 {[%clk 0:03:00.9]} 1... d5 {[%clk 0:02:59.5]} 2. Bg2 {[%clk 0:03:00.8]}
2... Nf6 {[%clk 0:03:00.4]} 3. d3 {[%clk 0:03:00.7]} 3... c6 {[%clk 0:03:01.3]}
4. Nd2 {[%clk 0:03:00.8]} 4... Bg4 {[%clk 0:03:01.4]} 5. h3 {[%clk 0:03:00.4]}
5... Bh5 {[%clk 0:03:01.9]} 6. g4 {[%clk 0:03:00.3]} 6... Bg6 {[%clk 0:03:02.2]}
7. f4 {[%clk 0:02:59.6]} 7... e6 {[%clk 0:03:02.4]} 8. e4 {[%clk 0:02:56.1]}
8... dxe4 {[%clk 0:02:55.4]} 9. dxe4 {[%clk 0:02:55.9]} 9... h6 {[%clk
0:02:48.2]} 10. f5 {[%clk 0:02:55.5]} 10... Bh7 {[%clk 0:02:48.8]} 11. Ngf3
{[%clk 0:02:53.6]} 11... Bc5 {[%clk 0:02:47.4]} 12. Qe2 {[%clk 0:02:53]} 12...
O-O {[%clk 0:02:43.2]} 13. Nb3 {[%clk 0:02:52.2]} 13... Bb6 {[%clk 0:02:39.7]}
14. Bf4 {[%clk 0:02:46.8]} 14... exf5 {[%clk 0:02:30.4]} 15. gxf5 {[%clk
0:02:43.7]} 15... Re8 {[%clk 0:02:08.1]} 16. Rd1 {[%clk 0:02:37.8]} 16... Qe7
{[%clk 0:02:06.7]} 17. Ne5 {[%clk 0:02:30.4]} 17... Nbd7 {[%clk 0:01:58.8]} 18.
Nxd7 {[%clk 0:02:29]} 18... Nxd7 {[%clk 0:01:59.7]} 19. Be3 {[%clk 0:02:09.4]}
19... Bxf5 {[%clk 0:01:42.4]} 20. Bxb6 {[%clk 0:02:03.7]} 20... axb6 {[%clk
0:01:38]} 21. O-O {[%clk 0:02:03.2]} 21... Bg6 {[%clk 0:01:25.2]} 22. a3 {[%clk
0:02:00.8]} 22... Nf6 {[%clk 0:01:21.7]} 23. Nd4 {[%clk 0:01:50.7]} 23... Nxe4
{[%clk 0:01:01]} 24. Nf5 {[%clk 0:01:45]} 24... Qc5+ {[%clk 0:00:55]} 25. Qe3
{[%clk 0:01:42.3]} 25... Bxf5 {[%clk 0:00:33.8]} 26. Qxc5 {[%clk 0:01:41.6]}
26... Nxc5 {[%clk 0:00:34]} 27. Rxf5 {[%clk 0:01:41.2]} 27... Re2 {[%clk
0:00:34.3]} 28. Rf2 {[%clk 0:01:39.1]} 28... Rae8 {[%clk 0:00:34.5]} 29. Rdf1
{[%clk 0:01:37.7]} 29... f6 {[%clk 0:00:33.8]} 30. Rxe2 {[%clk 0:01:37.3]} 30...
Rxe2 {[%clk 0:00:34.7]} 31. Rf2 {[%clk 0:01:37.2]} 31... Rxf2 {[%clk 0:00:35.1]}
32. Kxf2 {[%clk 0:01:37.1]} 32... Kf7 {[%clk 0:00:33.5]} 33. Ke3 {[%clk
0:01:36.2]} 33... Ke6 {[%clk 0:00:33.4]} 34. b4 {[%clk 0:01:35.8]} 34... Na4
{[%clk 0:00:30.6]} 35. c4 {[%clk 0:01:34.4]} 35... Ke5 {[%clk 0:00:23.2]} 36. b5
{[%clk 0:01:32.6]} 36... cxb5 {[%clk 0:00:20.5]} 37. cxb5 {[%clk 0:01:28.7]}
37... Nc3 {[%clk 0:00:21.1]} 38. Bxb7 {[%clk 0:01:24.5]} 38... Nxb5 {[%clk
0:00:21]} 39. a4 {[%clk 0:01:23.5]} 39... Nc3 {[%clk 0:00:20.2]} 40. Bc6 {[%clk
0:01:22.9]} 40... f5 {[%clk 0:00:20]} 41. h4 {[%clk 0:01:21.3]} 41... g5 {[%clk
0:00:19.8]} 42. hxg5 {[%clk 0:01:21]} 42... hxg5 {[%clk 0:00:20.7]} 43. Kf3
{[%clk 0:01:20.5]} 43... g4+ {[%clk 0:00:20.4]} 44. Kg3 {[%clk 0:01:20]} 44...
Ne4+ {[%clk 0:00:20.7]} 45. Kg2 {[%clk 0:01:18.7]} 45... f4 {[%clk 0:00:20.4]}
46. Bb5 {[%clk 0:01:17.6]} 46... f3+ {[%clk 0:00:20.6]} 47. Kf1 {[%clk
0:01:16.8]} 47... Kf4 {[%clk 0:00:21.5]} 48. Kg1 {[%clk 0:01:16.2]} 48... g3
{[%clk 0:00:21.7]} 49. Bd3 {[%clk 0:01:14.5]} 49... Nc5 {[%clk 0:00:20.9]} 50.
Bc2 {[%clk 0:01:12.8]} 50... Ke3 {[%clk 0:00:21.3]} 51. Kf1 {[%clk 0:01:11.1]}
51... Ne4 {[%clk 0:00:20.2]} 52. a5 {[%clk 0:01:05.1]} 52... bxa5 {[%clk
0:00:19.8]} 53. Ba4 {[%clk 0:01:04.7]} 53... Ng5 {[%clk 0:00:19.7]} 54. Bd7
{[%clk 0:01:02]} 54... g2+ {[%clk 0:00:16.1]} 55. Kg1 {[%clk 0:01:01.5]} 55...
a4 {[%clk 0:00:16.2]} 56. Bf5 {[%clk 0:00:56.8]} 56... a3 {[%clk 0:00:15.6]} 57.
Kh2 {[%clk 0:00:55.5]} 57... Kf2 {[%clk 0:00:13.3]} 58. Bb1 {[%clk 0:00:53.2]}
58... g1=Q# {[%clk 0:00:12.4]} 0-1

[Event "*** Titled Tuesday Blitz"]
[Site "Chess.com"]
[Date "2020.12.29"]
[Round "3"]
[White "queen_iryna"]
[Black "Morshynska"]
[Result "0-1"]
[WhiteElo "2343"]
[BlackElo "2209"]
[TimeControl "180+1"]
[EndTime "10:28:31 PST"]
[Termination "Morshynska won by resignation"]

1. e4 {[%clk 0:03:00.9]} 1... e5 {[%clk 0:02:59.4]} 2. Nf3 {[%clk 0:03:01.1]}
2... Nc6 {[%clk 0:02:59.8]} 3. d3 {[%clk 0:03:00.9]} 3... Nf6 {[%clk 0:02:59]}
4. Nbd2 {[%clk 0:03:01.1]} 4... d5 {[%clk 0:02:57.8]} 5. Be2 {[%clk 0:03:01.2]}
5... Bc5 {[%clk 0:02:56.2]} 6. O-O {[%clk 0:03:01.3]} 6... O-O {[%clk
0:02:55.2]} 7. c3 {[%clk 0:03:01.6]} 7... a5 {[%clk 0:02:52.5]} 8. h3 {[%clk
0:03:00.9]} 8... a4 {[%clk 0:02:50.6]} 9. Re1 {[%clk 0:02:59.6]} 9... Re8 {[%clk
0:02:50.2]} 10. Bf1 {[%clk 0:02:59.4]} 10... b6 {[%clk 0:02:40.4]} 11. Qc2
{[%clk 0:02:38.1]} 11... h6 {[%clk 0:02:20.2]} 12. exd5 {[%clk 0:02:13.2]} 12...
Qxd5 {[%clk 0:02:06.4]} 13. Ne4 {[%clk 0:02:12.6]} 13... Be7 {[%clk 0:01:59.1]}
14. Nxf6+ {[%clk 0:02:05.3]} 14... Bxf6 {[%clk 0:02:00]} 15. d4 {[%clk
0:01:53.3]} 15... Bb7 {[%clk 0:01:24.5]} 16. c4 {[%clk 0:01:29.3]} 16... Nxd4
{[%clk 0:01:16.1]} 17. Nxd4 {[%clk 0:01:24.1]} 17... Qxd4 {[%clk 0:01:17]} 18.
Be3 {[%clk 0:01:23.8]} 18... Qd7 {[%clk 0:01:00.2]} 19. Rad1 {[%clk 0:01:23.5]}
19... Qc6 {[%clk 0:00:59]} 20. Qf5 {[%clk 0:01:13]} 20... Bc8 {[%clk 0:00:53]}
21. Qh5 {[%clk 0:01:02.6]} 21... Qe6 {[%clk 0:00:45.6]} 22. b3 {[%clk
0:00:48.4]} 22... Qf5 {[%clk 0:00:42.3]} 23. Qe2 {[%clk 0:00:42.4]} 23... axb3
{[%clk 0:00:39.8]} 24. axb3 {[%clk 0:00:43.3]} 24... Bb7 {[%clk 0:00:33.3]} 25.
c5 {[%clk 0:00:29]} 25... bxc5 {[%clk 0:00:27.2]} 26. Bxc5 {[%clk 0:00:29.9]}
26... e4 {[%clk 0:00:19.5]} 27. Be3 {[%clk 0:00:28.1]} 27... Ba6 {[%clk
0:00:18.7]} 28. Qc2 {[%clk 0:00:27]} 28... Bxf1 {[%clk 0:00:18.6]} 29. Rxf1
{[%clk 0:00:27.9]} 29... Be5 {[%clk 0:00:18]} 30. g3 {[%clk 0:00:24.9]} 30...
Qf3 {[%clk 0:00:17]} 31. Kh2 {[%clk 0:00:24.4]} 31... Bxg3+ {[%clk 0:00:14.5]}
32. fxg3 {[%clk 0:00:25.3]} 32... Qxe3 {[%clk 0:00:14.9]} 33. Qc4 {[%clk
0:00:24.5]} 33... Rf8 {[%clk 0:00:13]} 34. Qxc7 {[%clk 0:00:24]} 34... Ra2+
{[%clk 0:00:12.6]} 35. Kh1 {[%clk 0:00:22.1]} 35... Qe2 {[%clk 0:00:10.3]} 36.
Qxf7+ {[%clk 0:00:11.4]} 36... Rxf7 {[%clk 0:00:09.5]} 37. Rd8+ {[%clk
0:00:12.3]} 37... Kh7 {[%clk 0:00:08.8]} 0-1

[Event "*** Titled Tuesday Blitz"]
[Site "Chess.com"]
[Date "2020.12.29"]
[Round "3"]
[White "tdf98pantani"]
[Black "GigaQuparadze"]
[Result "0-1"]
[WhiteElo "2652"]
[BlackElo "2893"]
[TimeControl "180+1"]
[EndTime "10:28:32 PST"]
[Termination "GigaQuparadze won by resignation"]

1. e4 {[%clk 0:03:00.9]} 1... c5 {[%clk 0:02:56.5]} 2. Nf3 {[%clk 0:03:01]} 2...
e6 {[%clk 0:02:56.4]} 3. d4 {[%clk 0:03:01.2]} 3... cxd4 {[%clk 0:02:57.3]} 4.
Nxd4 {[%clk 0:03:01.4]} 4... a6 {[%clk 0:02:57.8]} 5. Bd3 {[%clk 0:03:01.6]}
5... g6 {[%clk 0:02:56.7]} 6. c4 {[%clk 0:02:56.7]} 6... Bg7 {[%clk 0:02:54.3]}
7. Ne2 {[%clk 0:02:56.5]} 7... Ne7 {[%clk 0:02:54.7]} 8. Nbc3 {[%clk 0:02:56.1]}
8... Nbc6 {[%clk 0:02:54.5]} 9. O-O {[%clk 0:02:56]} 9... O-O {[%clk 0:02:53.5]}
10. Bg5 {[%clk 0:02:52.8]} 10... h6 {[%clk 0:02:50.7]} 11. Bh4 {[%clk 0:02:46]}
11... b6 {[%clk 0:02:41.8]} 12. Qd2 {[%clk 0:02:43.8]} 12... Bb7 {[%clk
0:02:36.4]} 13. Rfd1 {[%clk 0:02:42.6]} 13... g5 {[%clk 0:02:25]} 14. Bg3 {[%clk
0:02:41.9]} 14... Ne5 {[%clk 0:02:25.2]} 15. f3 {[%clk 0:02:35.6]} 15... Rc8
{[%clk 0:02:22.2]} 16. b3 {[%clk 0:02:35.5]} 16... b5 {[%clk 0:02:00]} 17. cxb5
{[%clk 0:02:34.9]} 17... axb5 {[%clk 0:02:00.1]} 18. Nxb5 {[%clk 0:02:23.3]}
18... d5 {[%clk 0:01:55.5]} 19. Nec3 {[%clk 0:01:41.2]} 19... Qa5 {[%clk
0:01:19.5]} 20. exd5 {[%clk 0:01:17.1]} 20... Nxd3 {[%clk 0:01:13.6]} 21. Qxd3
{[%clk 0:01:16.5]} 21... Bxc3 {[%clk 0:01:12.9]} 22. Nxc3 {[%clk 0:01:05.4]}
22... Rxc3 {[%clk 0:01:13.8]} 23. Qd2 {[%clk 0:01:02.3]} 23... Nxd5 {[%clk
0:01:10.9]} 24. Be5 {[%clk 0:01:00]} 24... Rc5 {[%clk 0:01:06.9]} 25. Bd6 {[%clk
0:00:56.5]} 25... Qb6 {[%clk 0:01:06.3]} 26. Bxc5 {[%clk 0:00:56.4]} 26... Qxc5+
{[%clk 0:01:07.2]} 27. Qd4 {[%clk 0:00:56.8]} 27... Qa3 {[%clk 0:01:05.7]} 28.
Rdc1 {[%clk 0:00:52.8]} 28... Nf4 {[%clk 0:01:05.7]} 29. Rc2 {[%clk 0:00:52.4]}
29... Bd5 {[%clk 0:01:04.8]} 30. g3 {[%clk 0:00:49.6]} 30... Ng6 {[%clk
0:01:03.9]} 31. Kf2 {[%clk 0:00:49.1]} 31... Qa8 {[%clk 0:01:01.3]} 32. Rc3
{[%clk 0:00:46.8]} 32... e5 {[%clk 0:01:01.1]} 33. Qc5 {[%clk 0:00:45.8]} 33...
e4 {[%clk 0:01:01]} 34. a4 {[%clk 0:00:38.8]} 34... exf3 {[%clk 0:00:59.4]} 35.
Rd1 {[%clk 0:00:38.9]} 35... Be6 {[%clk 0:00:58.2]} 36. a5 {[%clk 0:00:37.4]}
36... Qe4 {[%clk 0:00:55.6]} 37. Re1 {[%clk 0:00:33.6]} 37... Qg4 {[%clk
0:00:52.2]} 38. Rxf3 {[%clk 0:00:33.2]} 38... Qh3 {[%clk 0:00:49.9]} 39. Kg1
{[%clk 0:00:32.9]} 39... Rc8 {[%clk 0:00:48.2]} 40. Qf2 {[%clk 0:00:25.5]} 40...
Bd5 {[%clk 0:00:47.4]} 41. Rd3 {[%clk 0:00:21.5]} 41... Nf4 {[%clk 0:00:45.9]}
42. Rd2 {[%clk 0:00:13.6]} 42... Qg4 {[%clk 0:00:44.4]} 43. Qe3 {[%clk
0:00:11.2]} 43... Nh3+ {[%clk 0:00:42.8]} 44. Kf1 {[%clk 0:00:11.5]} 44... Qf5+
{[%clk 0:00:42.8]} 45. Ke2 {[%clk 0:00:11.8]} 45... Bc6 {[%clk 0:00:40]} 46. Rd4
{[%clk 0:00:10.6]} 46... Re8 {[%clk 0:00:39.3]} 0-1

[Event "*** Titled Tuesday Blitz"]
[Site "Chess.com"]
[Date "2020.12.29"]
[Round "3"]
[White "aa175"]
[Black "Neftegor"]
[Result "0-1"]
[WhiteElo "2374"]
[BlackElo "2571"]
[TimeControl "180+1"]
[EndTime "10:28:32 PST"]
[Termination "Neftegor won on time"]

1. d4 {[%clk 0:03:00.9]} 1... Nf6 {[%clk 0:02:59.3]} 2. Bf4 {[%clk 0:03:01.1]}
2... c5 {[%clk 0:02:58.1]} 3. e3 {[%clk 0:03:01.2]} 3... Qb6 {[%clk 0:02:57.9]}
4. Nc3 {[%clk 0:03:00.9]} 4... a6 {[%clk 0:02:57.7]} 5. a3 {[%clk 0:02:58.7]}
5... cxd4 {[%clk 0:02:57.5]} 6. exd4 {[%clk 0:02:58.9]} 6... d5 {[%clk
0:02:57.3]} 7. Nf3 {[%clk 0:02:59.1]} 7... Bg4 {[%clk 0:02:56.7]} 8. Be2 {[%clk
0:02:59.7]} 8... Bxf3 {[%clk 0:02:56.6]} 9. Bxf3 {[%clk 0:03:00.6]} 9... e6
{[%clk 0:02:56.7]} 10. O-O {[%clk 0:03:00.7]} 10... Nc6 {[%clk 0:02:53.3]} 11.
Ne2 {[%clk 0:02:33.2]} 11... Qxb2 {[%clk 0:02:51.2]} 12. Rb1 {[%clk 0:02:29]}
12... Qxa3 {[%clk 0:02:50.7]} 13. Rxb7 {[%clk 0:02:24.3]} 13... Na5 {[%clk
0:02:50.4]} 14. Rc7 {[%clk 0:01:31.5]} 14... Bd6 {[%clk 0:02:35.8]} 15. Rc3
{[%clk 0:01:08.2]} 15... Qb4 {[%clk 0:02:34.7]} 16. Bd2 {[%clk 0:01:07.4]} 16...
Qb8 {[%clk 0:02:33.4]} 17. Qa1 {[%clk 0:00:59.7]} 17... Nc4 {[%clk 0:02:32.4]}
18. Qa4+ {[%clk 0:00:53.4]} 18... Ke7 {[%clk 0:02:31.8]} 19. Rxc4 {[%clk
0:00:52.5]} 19... dxc4 {[%clk 0:02:29.4]} 20. Bxa8 {[%clk 0:00:53.4]} 20... Qxa8
{[%clk 0:02:26.2]} 21. Qxc4 {[%clk 0:00:53.1]} 21... Rc8 {[%clk 0:02:25]} 22.
Qa4 {[%clk 0:00:49.4]} 22... Qc6 {[%clk 0:02:23.1]} 23. Qa5 {[%clk 0:00:36]}
23... Qb5 {[%clk 0:02:12.9]} 24. Qxb5 {[%clk 0:00:29.5]} 24... axb5 {[%clk
0:02:12.3]} 25. c3 {[%clk 0:00:21.3]} 25... Nd5 {[%clk 0:02:11.2]} 26. Rb1
{[%clk 0:00:16.6]} 26... b4 {[%clk 0:01:59.7]} 27. cxb4 {[%clk 0:00:06.5]} 27...
Rc2 {[%clk 0:01:58.1]} 28. Rd1 {[%clk 0:00:04.4]} 28... Kd7 {[%clk 0:01:48.7]}
29. b5 {[%clk 0:00:03.4]} 29... Rb2 {[%clk 0:01:46]} 30. Nc3 {[%clk 0:00:02.2]}
30... Rxd2 {[%clk 0:01:36.1]} 31. Rxd2 {[%clk 0:00:02.4]} 31... Nxc3 {[%clk
0:01:36]} 32. b6 {[%clk 0:00:01.4]} 32... Nd5 {[%clk 0:01:33.3]} 33. Rb2 {[%clk
0:00:01.2]} 33... Kc6 {[%clk 0:01:30.2]} 34. b7 {[%clk 0:00:01.7]} 34... Bb8
{[%clk 0:01:30.2]} 35. f3 {[%clk 0:00:01.1]} 35... Nb6 {[%clk 0:01:29.2]} 36.
Kf2 {[%clk 0:00:02]} 36... Kxb7 {[%clk 0:01:29.1]} 37. Ke3 {[%clk 0:00:02.9]}
37... Kc6 {[%clk 0:01:29.1]} 38. Ke4 {[%clk 0:00:03.1]} 38... f5+ {[%clk
0:01:27.9]} 39. Kd3 {[%clk 0:00:03.2]} 39... Bd6 {[%clk 0:01:26.5]} 40. Rc2+
{[%clk 0:00:03.3]} 40... Kd7 {[%clk 0:01:26]} 41. Rb2 {[%clk 0:00:03.3]} 41...
Nd5 {[%clk 0:01:25.8]} 42. Rb7+ {[%clk 0:00:03.2]} 42... Bc7 {[%clk 0:01:25.9]}
43. Ra7 {[%clk 0:00:02.9]} 43... Nf4+ {[%clk 0:01:25.5]} 44. Ke3 {[%clk
0:00:02.8]} 44... Nxg2+ {[%clk 0:01:25.4]} 45. Kf2 {[%clk 0:00:02.6]} 45... Nf4
{[%clk 0:01:25.4]} 46. h4 {[%clk 0:00:03]} 46... h5 {[%clk 0:01:23.7]} 47. Ke3
{[%clk 0:00:03.4]} 47... Nd5+ {[%clk 0:01:22.9]} 48. Kd3 {[%clk 0:00:02.9]}
48... g6 {[%clk 0:01:22.9]} 49. Ra8 {[%clk 0:00:02.7]} 49... Bd8 {[%clk
0:01:19.5]} 50. Ra7+ {[%clk 0:00:02.8]} 50... Nc7 {[%clk 0:01:18.7]} 51. Ra1
{[%clk 0:00:02.7]} 51... Bxh4 {[%clk 0:01:16.4]} 52. Rg1 {[%clk 0:00:03.2]}
52... g5 {[%clk 0:01:16.6]} 53. Rh1 {[%clk 0:00:02.7]} 53... f4 {[%clk
0:01:15.8]} 54. Ke4 {[%clk 0:00:02.3]} 54... Ke7 {[%clk 0:01:15.7]} 55. Ke5
{[%clk 0:00:02.2]} 55... Nd5 {[%clk 0:01:14.5]} 56. Ra1 {[%clk 0:00:02.2]} 56...
Kd7 {[%clk 0:01:10.1]} 57. Ra7+ {[%clk 0:00:01.8]} 57... Nc7 {[%clk 0:01:10]}
58. Ra4 {[%clk 0:00:01.4]} 58... Bg3 {[%clk 0:01:07.8]} 59. Ra1 {[%clk
0:00:01.7]} 59... g4 {[%clk 0:01:05.9]} 0-1

[Event "*** Titled Tuesday Blitz"]
[Site "Chess.com"]
[Date "2020.12.29"]
[Round "3"]
[White "WonderChampion"]
[Black "Sjakkerntobi"]
[Result "0-1"]
[WhiteElo "2051"]
[BlackElo "2315"]
[TimeControl "180+1"]
[EndTime "10:28:32 PST"]
[Termination "Sjakkerntobi won by resignation"]

1. d4 {[%clk 0:03:00.9]} 1... e6 {[%clk 0:02:59.7]} 2. e4 {[%clk 0:02:59.5]}
2... d5 {[%clk 0:02:59]} 3. Nc3 {[%clk 0:02:59.2]} 3... Bb4 {[%clk 0:02:58.7]}
4. exd5 {[%clk 0:02:51.2]} 4... exd5 {[%clk 0:02:59.6]} 5. Bd3 {[%clk
0:02:51.6]} 5... Nc6 {[%clk 0:02:59.4]} 6. Nf3 {[%clk 0:02:50.8]} 6... Nge7
{[%clk 0:02:57]} 7. O-O {[%clk 0:02:51.1]} 7... Bg4 {[%clk 0:02:54.1]} 8. Be3
{[%clk 0:02:48.2]} 8... Qd7 {[%clk 0:02:53.3]} 9. a3 {[%clk 0:02:47.6]} 9... Bd6
{[%clk 0:02:53]} 10. Re1 {[%clk 0:02:45.9]} 10... O-O-O {[%clk 0:02:53]} 11. Bg5
{[%clk 0:02:45.6]} 11... f6 {[%clk 0:02:51.3]} 12. Be3 {[%clk 0:02:44.5]} 12...
h5 {[%clk 0:02:51.1]} 13. Nb5 {[%clk 0:02:40.5]} 13... g5 {[%clk 0:02:46.6]} 14.
c4 {[%clk 0:02:38.5]} 14... dxc4 {[%clk 0:02:36]} 15. Bxc4 {[%clk 0:02:39.4]}
15... h4 {[%clk 0:02:35.8]} 16. d5 {[%clk 0:02:31.2]} 16... Ne5 {[%clk 0:02:36]}
17. Nxa7+ {[%clk 0:02:29.9]} 17... Kb8 {[%clk 0:02:36]} 18. Bb5 {[%clk
0:02:28.4]} 18... Qf5 {[%clk 0:02:28.5]} 19. Be2 {[%clk 0:02:06.7]} 19... Bxf3
{[%clk 0:01:47.6]} 20. Bxf3 {[%clk 0:02:07.6]} 20... Nxf3+ {[%clk 0:01:41.8]}
21. Qxf3 {[%clk 0:02:06.4]} 21... Qxf3 {[%clk 0:01:42]} 22. gxf3 {[%clk
0:02:07.2]} 22... Nxd5 {[%clk 0:01:40]} 23. Nb5 {[%clk 0:02:05.3]} 23... Be5
{[%clk 0:01:36.3]} 24. Rab1 {[%clk 0:01:44.5]} 24... c6 {[%clk 0:01:35.3]} 25.
Nc3 {[%clk 0:01:37.3]} 25... Nxc3 {[%clk 0:01:18.9]} 26. bxc3 {[%clk 0:01:38.2]}
26... Bxc3 {[%clk 0:01:19.8]} 27. Rec1 {[%clk 0:01:38.5]} 27... Rd3 {[%clk
0:01:11.1]} 28. Rb3 {[%clk 0:01:28.6]} 28... Rxe3 {[%clk 0:00:57.1]} 29. fxe3
{[%clk 0:01:26.8]} 29... Be5 {[%clk 0:00:57.7]} 30. Rcb1 {[%clk 0:01:17.4]}
30... Rh7 {[%clk 0:00:52]} 31. a4 {[%clk 0:01:13.2]} 31... Rd7 {[%clk
0:00:50.7]} 32. a5 {[%clk 0:01:09.7]} 32... Ka7 {[%clk 0:00:48.7]} 33. Rb4
{[%clk 0:01:00.7]} 33... c5 {[%clk 0:00:47.9]} 34. Rb5 {[%clk 0:00:58.2]} 34...
c4 {[%clk 0:00:48]} 35. Rc5 {[%clk 0:00:49.2]} 35... c3 {[%clk 0:00:48.2]} 36.
Rcb5 {[%clk 0:00:43.6]} 36... c2 {[%clk 0:00:44.7]} 37. Rf1 {[%clk 0:00:40.7]}
37... Rd1 {[%clk 0:00:43.5]} 38. Rc5 {[%clk 0:00:39.6]} 38... Rd2 {[%clk
0:00:41.9]} 39. h3 {[%clk 0:00:34.7]} 39... b6 {[%clk 0:00:30.4]} 40. axb6+
{[%clk 0:00:32.8]} 40... Kxb6 {[%clk 0:00:31.3]} 41. Rc8 {[%clk 0:00:32.3]}
41... Bc7 {[%clk 0:00:29.8]} 42. f4 {[%clk 0:00:26]} 42... Rd1 {[%clk
0:00:29.4]} 43. fxg5 {[%clk 0:00:14.1]} 43... Rxf1+ {[%clk 0:00:29.2]} 44. Kxf1
{[%clk 0:00:13.4]} 44... c1=Q+ {[%clk 0:00:30.1]} 45. Kg2 {[%clk 0:00:14.1]}
45... Qd2+ {[%clk 0:00:30]} 0-1